bitfinex/quotes_BTCUSD_20250221
["timestamp","ask_amount","ask_price","bid_price","bid_amount"]
[1740159423226,0.0042059,97556.0,97555.0,0.38574569]
[1740159423453,0.0042059,97556.0,97555.0,0.37874569]
[1740159423454,0.001,97556.0,97555.0,0.37874569]
[1740159423871,0.00833014,97556.0,97555.0,0.38674569]
[1740159424281,0.00733014,97556.0,97555.0,0.38574569]
[1740159424701,0.00833014,97556.0,97555.0,0.38674569]
[1740159426243,0.00833014,97556.0,97555.0,0.23674569]
[1740159428611,0.00833014,97556.0,97555.0,0.15864569]
[1740159429284,0.00833014,97556.0,97555.0,0.11064569]
[1740159430235,0.02753014,97556.0,97555.0,0.009701]
[1740159430816,0.02838064,97556.0,97555.0,0.009701]
[1740159431024,0.13102633,97556.0,97555.0,0.008]
[1740159431171,0.13002633,97556.0,97555.0,0.007]
[1740159431386,0.02538064,97556.0,97551.0,0.0004]
[1740159431706,0.04499906,97556.0,97555.0,0.001]
[1740159432061,0.04499906,97556.0,97551.0,0.0004]
[1740159432268,0.0192,97552.0,97551.0,0.0004]
[1740159432938,0.02673957,97552.0,97551.0,0.0004]
[1740159433144,0.00753957,97552.0,97551.0,0.0004]
[1740159433553,0.02873957,97552.0,97551.0,0.0004]
[1740159433966,0.01353957,97552.0,97551.0,0.0004]
[1740159434178,0.03273957,97552.0,97551.0,0.0004]
[1740159434384,0.02873957,97552.0,97551.0,0.0004]
[1740159435345,0.02673957,97552.0,97551.0,0.0004]
[1740159435644,0.03315551,97552.0,97551.0,0.0004]
[1740159436205,0.05044233,97552.0,97551.0,0.0014]
[1740159436412,0.23428802,97552.0,97551.0,0.0004]
[1740159436631,0.23228802,97552.0,97551.0,0.0004]
[1740159436809,0.12422639,97552.0,97551.0,0.0004]
[1740159437083,0.02382639,97552.0,97551.0,0.0004]
[1740159437277,0.04402639,97552.0,97551.0,0.0004]
[1740159437504,0.02382639,97552.0,97551.0,0.0004]
[1740159437703,0.04302639,97552.0,97551.0,0.0004]
[1740159438053,0.04502639,97552.0,97551.0,0.0004]
[1740159438479,0.04402639,97552.0,97551.0,0.0004]
[1740159438687,0.04502639,97552.0,97551.0,0.0004]
[1740159438935,0.03194754,97552.0,97551.0,0.0004]
[1740159439542,0.02994754,97552.0,97551.0,0.0004]
[1740159440066,0.02773957,97552.0,97551.0,0.0004]
[1740159440267,0.13138526,97552.0,97551.0,0.0004]
[1740159440548,0.13038526,97552.0,97551.0,0.0004]
[1740159440761,0.13238526,97552.0,97551.0,0.0004]
[1740159441158,0.13038526,97552.0,97551.0,0.0004]
[1740159441589,0.17668526,97552.0,97551.0,0.0004]
[1740159441797,0.35168526,97552.0,97551.0,0.0004]
[1740159442000,0.35876411,97552.0,97551.0,0.0004]
[1740159442421,0.34376411,97552.0,97551.0,0.0004]
[1740159442637,0.35076411,97552.0,97551.0,0.0004]
[1740159443043,0.35076411,97552.0,97551.0,0.0014]
[1740159443215,0.34576411,97552.0,97551.0,0.0004]
[1740159443427,0.34897269,97552.0,97551.0,0.0014]
[1740159443631,0.35597269,97552.0,97551.0,0.0014]
[1740159443811,0.34897269,97552.0,97551.0,0.0014]
[1740159444392,0.35597269,97552.0,97551.0,0.0014]
[1740159444712,0.19897269,97552.0,97551.0,0.0004]
[1740159445169,0.20597269,97552.0,97551.0,0.0014]
[1740159445316,0.19897269,97552.0,97551.0,0.0004]
[1740159445525,0.19897269,97552.0,97551.0,0.0014]
[1740159445748,0.20597269,97552.0,97551.0,0.0014]
[1740159445952,0.19897269,97552.0,97551.0,0.0004]
[1740159446167,0.20597269,97552.0,97551.0,0.0014]
[1740159446369,0.19897269,97552.0,97551.0,0.0004]
[1740159446908,0.19576411,97552.0,97551.0,0.0014]
[1740159447116,0.20276411,97552.0,97551.0,0.0014]
[1740159447963,0.19576411,97552.0,97551.0,0.0004]
[1740159448411,0.20276411,97552.0,97551.0,0.0014]
[1740159448608,0.20276411,97552.0,97551.0,0.0004]
[1740159448609,0.18876411,97552.0,97551.0,0.0004]
[1740159448906,0.05281842,97552.0,97551.0,0.0014]
[1740159449116,0.15546411,97552.0,97551.0,0.0004]
[1740159449536,0.15038526,97552.0,97551.0,0.0014]
[1740159449742,0.12938526,97552.0,97551.0,0.0004]
[1740159449960,0.14338526,97552.0,97551.0,0.0014]
[1740159450177,0.21838526,97552.0,97551.0,0.0014]
[1740159450422,0.21138526,97552.0,97551.0,0.0014]
[1740159451157,0.43630496,97552.0,97551.0,0.0004]
[1740159451391,0.46063457,97552.0,97551.0,0.0004]
[1740159451630,0.46763457,97552.0,97551.0,0.0014]
[1740159451886,0.46063457,97552.0,97551.0,0.0004]
[1740159452093,0.46384346,97552.0,97551.0,0.0004]
[1740159452303,0.431973,97552.0,97551.0,0.001]
[1740159452513,0.15,97551.0,97534.0,7e-05]
[1740159452727,0.15,97543.0,97534.0,7e-05]
[1740159452936,0.15,97541.0,97534.0,7e-05]
[1740159453153,0.10264569,97540.0,97534.0,7e-05]
[1740159453593,0.01001995,97537.0,97534.0,7e-05]
[1740159453835,0.11266564,97537.0,97534.0,7e-05]
[1740159454799,0.11309931,97537.0,97534.0,7e-05]
[1740159455020,0.02282731,97536.0,97534.0,7e-05]
[1740159456354,0.03482731,97536.0,97534.0,7e-05]
[1740159456736,0.01961842,97535.0,97534.0,7e-05]
[1740159456951,0.02924552,97535.0,97534.0,7e-05]
[1740159458318,0.03424552,97535.0,97534.0,7e-05]
[1740159458521,0.17336047,97535.0,97534.0,7e-05]
[1740159459371,0.17849528,97535.0,97534.0,7e-05]
[1740159459544,0.17970809,97525.0,97511.0,0.08221256]
[1740159460132,0.18879655,97525.0,97511.0,0.08221256]
[1740159460384,0.01668747,97524.0,97511.0,0.08221256]
[1740159460787,0.01668747,97524.0,97521.0,0.08181256]
[1740159460993,0.02503117,97524.0,97521.0,0.08181256]
[1740159461393,0.01004139,97517.0,97511.0,0.08221256]
[1740159462433,0.01668747,97516.0,97511.0,0.08221256]
[1740159462779,0.02503117,97516.0,97511.0,0.08221256]
[1740159462981,0.06384959,97516.0,97511.0,0.0004]
[1740159463442,0.07084959,97516.0,97511.0,0.0004]
[1740159463999,0.06584959,97516.0,97511.0,0.0004]
[1740159464696,0.07498421,97516.0,97511.0,0.0004]
[1740159464875,0.06398421,97516.0,97511.0,0.0004]
[1740159465090,0.07098421,97516.0,97511.0,0.0004]
[1740159465254,0.07498421,97516.0,97511.0,0.0004]
[1740159465695,0.07498421,97516.0,97515.0,0.251701]
[1740159466317,0.1776299,97516.0,97515.0,0.251701]
[1740159466580,0.1776299,97516.0,97461.0,0.08181256]
[1740159466581,0.0192,97501.0,97467.0,0.0787]
[1740159466829,0.12184569,97501.0,97467.0,0.0787]
[1740159468056,0.13481866,97501.0,97467.0,0.0787]
[1740159468965,0.13681866,97501.0,97467.0,0.0787]
[1740159469181,0.14181866,97501.0,97467.0,0.0787]
[1740159469387,0.14508792,97501.0,97467.0,0.0787]
[1740159469595,0.15208792,97501.0,97467.0,0.0787]
[1740159470453,0.20148792,97501.0,97461.0,0.08181256]
[1740159470669,0.27958792,97501.0,97461.0,0.08181256]
[1740159470937,0.15,97500.0,97471.0,0.0004]
[1740159471149,0.17970809,97481.0,97471.0,0.0004]
[1740159471555,0.0192,97472.0,97471.0,0.0004]
[1740159472610,0.01026926,97472.0,97471.0,0.0004]
[1740159473024,0.01026926,97472.0,97471.0,0.0772]
[1740159473247,0.01780883,97472.0,97471.0,0.0772]
[1740159473472,0.03700883,97472.0,97471.0,0.1263]
[1740159474320,0.04400883,97472.0,97471.0,0.1263]
[1740159474524,0.03373957,97472.0,97471.0,0.0004]
[1740159474741,0.03073957,97472.0,97471.0,0.0004]
[1740159475025,0.02673957,97472.0,97471.0,0.0004]
[1740159475267,0.02973957,97472.0,97471.0,0.0004]
[1740159475487,0.02773957,97472.0,97471.0,0.0004]
[1740159475720,0.02673957,97472.0,97471.0,0.0004]
[1740159475950,0.02973957,97472.0,97471.0,0.0004]
[1740159476184,0.04016113,97472.0,97471.0,0.0004]
[1740159476454,0.03616113,97472.0,97471.0,0.0004]
[1740159476650,0.03916113,97472.0,97471.0,0.0004]
[1740159477297,0.03616113,97472.0,97471.0,0.0004]
[1740159477503,0.04316113,97472.0,97471.0,0.0004]
[1740159478124,0.03616113,97472.0,97471.0,0.0004]
[1740159478331,0.04216113,97472.0,97471.0,0.0004]
[1740159478529,0.03916113,97472.0,97471.0,0.0004]
[1740159478808,0.04216113,97472.0,97471.0,0.0004]
[1740159479016,0.03616113,97472.0,97471.0,0.0004]
[1740159479220,0.03316113,97472.0,97471.0,0.0004]
[1740159479431,0.03616113,97472.0,97471.0,0.0004]
[1740159479614,0.03316113,97472.0,97471.0,0.0004]
[1740159480253,0.04216113,97472.0,97471.0,0.0004]
[1740159480862,0.04643503,97472.0,97471.0,0.0004]
[1740159481015,0.04843503,97472.0,97471.0,0.0004]
[1740159481437,0.04643503,97472.0,97471.0,0.0004]
[1740159481836,0.02513503,97472.0,97471.0,0.0004]
[1740159482015,0.05641388,97472.0,97471.0,0.0004]
[1740159482223,0.03721388,97472.0,97471.0,0.0004]
[1740159482419,0.03721388,97472.0,97471.0,0.0473]
[1740159482683,0.02893998,97472.0,97471.0,0.0473]
[1740159482890,0.02693998,97472.0,97471.0,0.22934569]
[1740159483300,0.02193998,97472.0,97471.0,0.22934569]
[1740159483454,0.02693998,97472.0,97471.0,0.22934569]
[1740159483832,0.01486113,97472.0,97471.0,0.22934569]
[1740159484039,0.00986113,97472.0,97471.0,0.22934569]
[1740159484447,0.00343957,97472.0,97471.0,0.22934569]
[1740159485034,0.00443957,97472.0,97471.0,0.22934569]
[1740159485261,0.00543957,97472.0,97471.0,0.22934569]
[1740159485816,0.002,97472.0,97471.0,0.22934569]
[1740159486381,0.001,97472.0,97471.0,0.22934569]
[1740159486585,0.001,97472.0,97471.0,0.23134569]
[1740159486834,0.003,97472.0,97471.0,0.23134569]
[1740159487441,0.002,97472.0,97471.0,0.22934569]
[1740159487671,0.003,97472.0,97471.0,0.23134569]
[1740159488068,0.001,97472.0,97471.0,0.23134569]
[1740159488835,0.002,97472.0,97471.0,0.23134569]
[1740159490252,0.0212,97472.0,97471.0,0.0024]
[1740159490456,0.0202,97472.0,97471.0,0.0004]
[1740159490811,0.0212,97472.0,97471.0,0.0014]
[1740159491008,0.0210512,97472.0,97471.0,0.0014]
[1740159491213,0.0200512,97472.0,97471.0,0.0004]
[1740159491417,0.0210512,97472.0,97471.0,0.0004]
[1740159491617,0.02647199,97472.0,97471.0,0.0014]
[1740159491801,0.02747199,97472.0,97471.0,0.0014]
[1740159492207,0.02647199,97472.0,97471.0,0.0014]
[1740159492960,0.02747199,97472.0,97471.0,0.0004]
[1740159493190,0.05282533,97472.0,97471.0,0.0004]
[1740159493396,0.17970809,97470.0,97457.0,0.0457]
[1740159493572,0.17970809,97470.0,97462.0,0.08181256]
[1740159494565,0.18014123,97470.0,97462.0,0.08181256]
[1740159494770,0.02604532,97469.0,97462.0,0.08181256]
[1740159496187,0.0192,97465.0,97462.0,0.08181256]
[1740159496981,0.0192,97463.0,97457.0,0.0457]
[1740159497182,0.0192,97463.0,97453.0,0.0812]
[1740159497383,0.0192,97463.0,97454.0,0.10264569]
[1740159497608,0.19890809,97463.0,97454.0,0.10264569]
[1740159497788,0.19890809,97463.0,97451.0,0.08181256]
[1740159497789,0.0192,97457.0,97451.0,0.08181256]
[1740159498025,0.0192,97454.0,97451.0,0.08181256]
[1740159499210,0.02823623,97454.0,97451.0,0.08181256]
[1740159499393,0.0192,97453.0,97451.0,0.08181256]
[1740159499593,0.02674568,97453.0,97451.0,0.08181256]
[1740159500275,0.0192,97452.0,97451.0,0.08181256]
[1740159500991,0.02562205,97452.0,97451.0,0.08181256]
[1740159501452,0.03316773,97452.0,97451.0,0.08181256]
[1740159501676,0.03416773,97452.0,97451.0,0.08181256]
[1740159502120,0.01496773,97452.0,97451.0,0.08181256]
[1740159502342,0.01496773,97452.0,97451.0,0.18445825]
[1740159502551,0.01496773,97452.0,97451.0,0.08181256]
[1740159502960,0.01496773,97452.0,97445.0,0.0491]
[1740159503203,0.03416773,97452.0,97446.0,0.08181256]
[1740159503703,0.02774568,97452.0,97446.0,0.08181256]
[1740159503952,0.02674568,97452.0,97446.0,0.08181256]
[1740159504211,0.00754568,97451.0,97446.0,0.08181256]
[1740159504893,0.00754568,97451.0,97447.0,0.10264569]
[1740159505340,0.00854568,97451.0,97447.0,0.10264569]
[1740159506001,0.001,97451.0,97448.0,0.00123128]
[1740159506213,0.001,97451.0,97449.0,0.10387691]
[1740159506434,0.001,97451.0,97449.0,0.10264569]
[1740159506857,0.00754568,97453.0,97449.0,0.10264569]
[1740159507261,0.001,97451.0,97449.0,0.10264569]
[1740159507467,0.00754568,97453.0,97449.0,0.10264569]
[1740159507667,0.00916692,97456.0,97449.0,0.10264569]
[1740159507880,0.001,97451.0,97449.0,0.10264569]
[1740159508095,0.001,97451.0,97449.0,0.25657069]
[1740159508305,0.001,97451.0,97449.0,0.10264569]
[1740159508958,0.001,97451.0,97450.0,0.153925]
[1740159509166,0.001,97451.0,97450.0,0.25657069]
[1740159510619,0.00910314,97458.0,97456.0,0.153915]
[1740159510834,0.001,97451.0,97450.0,0.153925]
[1740159511046,0.001,97451.0,97450.0,0.40096585]
[1740159511261,0.001,97451.0,97450.0,0.47016585]
[1740159511706,0.01207885,97469.0,97468.0,0.153896]
[1740159511923,0.01207885,97469.0,97467.0,0.0825]
[1740159511924,0.00043314,97470.0,97467.0,0.0825]
[1740159512135,0.00043314,97470.0,97468.0,0.153895]
[1740159512347,0.00043314,97470.0,97446.0,0.16431256]
[1740159512562,0.0192,97459.0,97451.0,0.10264569]
[1740159513496,0.0192,97459.0,97452.0,0.153921]
[1740159513689,0.0192,97459.0,97453.0,0.10264569]
[1740159513860,0.0192,97459.0,97453.0,0.25656469]
[1740159514071,0.0192,97459.0,97453.0,0.10264569]
[1740159514274,0.0202,97459.0,97453.0,0.25656469]
[1740159514478,0.0192,97458.0,97451.0,0.004]
[1740159514655,0.0202,97459.0,97452.0,0.10264569]
[1740159514842,0.0192,97458.0,97452.0,0.10264569]
[1740159515038,0.0192,97458.0,97453.0,0.002]
[1740159515242,0.0192,97457.0,97453.0,0.002]
[1740159515441,0.0192,97457.0,97448.0,0.153927]
[1740159515644,0.0192,97457.0,97453.0,0.002]
[1740159516748,0.0202,97457.0,97453.0,0.004]
[1740159517159,0.0202,97457.0,97456.0,0.08181256]
[1740159517412,0.001,97457.0,97456.0,0.33837325]
[1740159517913,0.002,97457.0,97456.0,0.18445825]
[1740159518114,0.001,97457.0,97456.0,0.18445825]
[1740159518325,0.02773954,97457.0,97456.0,0.08181256]
[1740159518529,0.00853954,97457.0,97456.0,0.33837325]
[1740159518733,0.00853954,97457.0,97456.0,0.18445825]
[1740159518945,0.00953954,97457.0,97456.0,0.34037325]
[1740159519813,0.002,97457.0,97456.0,0.34037325]
[1740159520021,0.002,97457.0,97456.0,0.41847325]
[1740159520232,0.002,97457.0,97456.0,0.46807325]
[1740159520663,0.001,97457.0,97456.0,0.4826141]
[1740159521075,0.002,97457.0,97456.0,0.4826141]
[1740159521283,0.002,97457.0,97456.0,0.46807325]
[1740159521492,0.001,97457.0,97456.0,0.46607325]
[1740159521840,0.01666667,97460.0,97459.0,0.15391]
[1740159522042,0.01666667,97460.0,97459.0,0.25655569]
[1740159523472,0.01666667,97460.0,97459.0,0.26355569]
[1740159524079,0.01766667,97460.0,97459.0,0.27055569]
[1740159526834,0.01766667,97460.0,97459.0,0.28509654]
[1740159527061,0.01766667,97460.0,97459.0,0.62027104]
[1740159527287,0.01766667,97460.0,97459.0,0.63037481]
[1740159527916,0.01666667,97460.0,97459.0,0.61637481]
[1740159528312,0.01866667,97460.0,97459.0,0.62657481]
[1740159528523,0.01866667,97460.0,97459.0,0.50005569]
[1740159529394,0.01866667,97460.0,97459.0,0.11364569]
[1740159529617,0.01766667,97460.0,97459.0,0.004]
[1740159529853,0.01866667,97460.0,97459.0,0.011]
[1740159530065,0.03686667,97460.0,97459.0,0.007]
[1740159530283,0.03786667,97460.0,97459.0,0.014]
[1740159530501,0.03786667,97460.0,97459.0,0.007]
[1740159530929,0.03786667,97460.0,97459.0,0.009]
[1740159531146,0.03686667,97460.0,97459.0,0.002]
[1740159531367,0.03686667,97460.0,97433.0,0.0769]
[1740159531368,0.01666667,97460.0,97442.0,0.08181256]
[1740159531573,0.03586667,97460.0,97459.0,0.002]
[1740159532686,0.03586667,97460.0,97459.0,0.004]
[1740159533184,0.03586667,97460.0,97459.0,0.002]
[1740159533614,0.03586667,97460.0,97459.0,0.10464569]
[1740159533826,0.03586667,97460.0,97459.0,0.25855569]
[1740159533827,0.01666667,97460.0,97459.0,0.25855569]
[1740159534036,0.01666667,97460.0,97459.0,0.26155569]
[1740159534255,0.01666667,97460.0,97459.0,0.10764569]
[1740159534471,0.01666667,97460.0,97459.0,0.005]
[1740159534472,0.04338869,97460.0,97459.0,0.005]
[1740159534655,0.04338869,97460.0,97459.0,0.003]
[1740159534866,0.04338869,97460.0,97459.0,0.004]
[1740159535076,0.04338869,97460.0,97459.0,0.009]
[1740159535285,0.04338869,97460.0,97459.0,0.005]
[1740159535540,0.19729769,97460.0,97459.0,0.005]
[1740159535753,0.19829769,97460.0,97459.0,0.011]
[1740159535996,0.27909769,97460.0,97459.0,0.011]
[1740159536195,0.27057567,97460.0,97459.0,0.005]
[1740159536407,0.0192,97436.0,97431.0,0.0004]
[1740159536620,0.0192,97432.0,97431.0,0.0004]
[1740159536857,0.01766667,97460.0,97439.0,0.0008]
[1740159537078,0.01966667,97460.0,97458.0,0.153911]
[1740159537296,0.01966667,97460.0,97432.0,0.0758]
[1740159537527,0.01966667,97460.0,97433.0,0.30791469]
[1740159537528,0.0192,97453.0,97433.0,0.30791469]
[1740159537752,0.0192,97453.0,97444.0,0.08181256]
[1740159537965,0.0192,97453.0,97451.0,0.153922]
[1740159538206,0.0192,97453.0,97444.0,0.08181256]
[1740159538207,0.01956019,97459.0,97458.0,0.153912]
[1740159538415,0.01956019,97459.0,97458.0,0.26155769]
[1740159539070,0.01956019,97459.0,97458.0,0.42609854]
[1740159539289,0.01709981,97460.0,97459.0,0.16454085]
[1740159539518,0.01709981,97460.0,97459.0,0.26718654]
[1740159540618,0.01709981,97460.0,97459.0,0.25264569]
[1740159541267,0.01809981,97460.0,97459.0,0.25964569]
[1740159541488,0.01809981,97460.0,97459.0,0.007]
[1740159541707,0.01709981,97460.0,97452.0,0.153921]
[1740159541921,0.01709981,97460.0,97459.0,0.007]
[1740159542183,0.03729981,97460.0,97459.0,0.014]
[1740159542611,0.03629981,97460.0,97459.0,0.007]
[1740159542827,0.03629981,97460.0,97459.0,0.009]
[1740159543541,0.01709981,97460.0,97459.0,0.15591]
[1740159543840,0.02463077,97460.0,97459.0,0.41555569]
[1740159544019,0.02463077,97460.0,97459.0,0.50339654]
[1740159544245,0.02463077,97460.0,97459.0,0.55609654]
[1740159544473,0.02463077,97460.0,97459.0,0.56009654]
[1740159544714,0.01709981,97460.0,97459.0,0.55609654]
[1740159544945,0.01709981,97460.0,97459.0,0.55209654]
[1740159545179,0.01809981,97460.0,97459.0,0.56609654]
[1740159545565,0.01709981,97460.0,97459.0,0.57909654]
[1740159545905,0.01809981,97460.0,97459.0,0.58609654]
[1740159546448,0.01809981,97460.0,97459.0,1.04069654]
[1740159546662,0.01809981,97460.0,97459.0,0.57909654]
[1740159546855,0.01809981,97460.0,97459.0,0.58609654]
[1740159547036,0.01709981,97460.0,97459.0,0.57909654]
[1740159547236,0.01709981,97460.0,97459.0,0.57209654]
[1740159547461,0.01809981,97460.0,97459.0,0.58609654]
[1740159547668,0.01809981,97460.0,97459.0,0.56609654]
[1740159547870,0.01809981,97460.0,97459.0,0.39764569]
[1740159549147,0.01809981,97460.0,97459.0,0.31534569]
[1740159549345,0.01809981,97460.0,97459.0,0.11664569]
[1740159549548,0.03729981,97460.0,97459.0,0.007]
[1740159550005,0.03729981,97460.0,97459.0,0.014]
[1740159550247,0.03629981,97460.0,97437.0,0.153944]
[1740159550451,0.03629981,97460.0,97420.0,0.47509376]
[1740159550452,0.0192,97451.0,97439.0,0.205256]
[1740159550656,0.0192,97451.0,97440.0,0.10264569]
[1740159551266,0.0192,97451.0,97428.0,0.153959]
[1740159551516,0.0192,97441.0,97434.0,0.10264569]
[1740159551734,0.0192,97441.0,97439.0,0.006]
[1740159551947,0.0192,97441.0,97439.0,0.10864569]
[1740159552154,0.0192,97441.0,97440.0,0.006]
[1740159553339,0.0192,97441.0,97440.0,0.012]
[1740159553553,0.001,97451.0,97445.0,0.153932]
[1740159553554,0.0192,97446.0,97445.0,0.153932]
[1740159553773,0.00969494,97458.0,97457.0,0.153914]
[1740159553990,0.0192,97457.0,97456.0,0.153915]
[1740159554192,0.0192,97446.0,97440.0,0.006]
[1740159554399,0.0192,97441.0,97440.0,0.006]
[1740159554606,0.0192,97441.0,97424.0,0.15]
[1740159554830,0.0192,97441.0,97434.0,0.10264569]
[1740159555471,0.02,97441.0,97434.0,0.10264569]
[1740159556373,0.00753284,97457.0,97427.0,0.08181256]
[1740159556374,0.00753284,97457.0,97440.0,0.004]
[1740159556580,0.01709981,97460.0,97459.0,0.15391]
[1740159557006,0.01709981,97460.0,97457.0,0.153913]
[1740159557213,0.01709981,97460.0,97458.0,0.10264569]
[1740159558328,0.01709981,97460.0,97410.0,0.02044996]
[1740159558329,0.02,97458.0,97457.0,0.006]
[1740159559218,0.02,97458.0,97457.0,0.011]
[1740159559479,0.57485769,97458.0,97457.0,0.005]
[1740159559711,0.02,97426.0,97401.0,0.11722831]
[1740159559943,0.02,97426.0,97415.0,0.08181256]
[1740159560183,0.02,97426.0,97416.0,0.10264569]
[1740159560891,0.04,97431.0,97418.0,0.2053]
[1740159561115,0.00043287,97426.0,97425.0,0.23577556]
[1740159561352,0.00043287,97426.0,97425.0,0.33842125]
[1740159561789,0.00143287,97426.0,97425.0,0.33842125]
[1740159562222,0.00143287,97426.0,97425.0,0.48633195]
[1740159563116,0.00143287,97426.0,97425.0,0.6578728]
[1740159563332,0.01666667,97460.0,97426.0,0.16454085]
[1740159563333,0.02,97459.0,97426.0,0.16454085]
[1740159563553,0.02,97459.0,97445.0,0.08181256]
[1740159563762,0.02,97459.0,97446.0,0.10264569]
[1740159563876,0.02,97459.0,97454.0,0.153918]
[1740159564073,0.02,97459.0,97451.0,0.20523]
[1740159564287,0.02,97454.0,97445.0,0.08181256]
[1740159564493,0.02,97454.0,97445.0,0.23574456]
[1740159564901,0.02,97454.0,97427.0,0.205281]
[1740159565138,0.02,97439.0,97428.0,0.00123126]
[1740159565350,0.02,97439.0,97425.0,0.08893587]
[1740159565351,0.02,97434.0,97425.0,0.00712331]
[1740159565547,0.02,97439.0,97425.0,0.00712331]
[1740159565548,0.02,97429.0,97425.0,0.00012331]
[1740159566600,0.04,97429.0,97425.0,0.00012331]
[1740159566909,0.04,97429.0,97425.0,0.00512331]
[1740159568289,0.041,97429.0,97425.0,0.01212331]
[1740159569022,0.001,97429.0,97427.0,0.15396]
[1740159569245,0.002,97429.0,97428.0,0.10387714]
[1740159569744,0.002,97429.0,97428.0,0.10264569]
[1740159569988,0.001,97429.0,97428.0,0.1038771]
[1740159570240,0.02,97444.0,97428.0,0.1038771]
[1740159570471,0.002,97429.0,97428.0,0.30792369]
[1740159570709,0.02,97447.0,97428.0,0.10264569]
[1740159570952,0.001,97429.0,97428.0,0.10964569]
[1740159571219,0.002,97429.0,97428.0,0.26360469]
[1740159572397,0.001,97429.0,97428.0,0.25660469]
[1740159572605,0.001,97429.0,97428.0,5.23003454]
[1740159572839,0.0008518,97441.0,97440.0,0.15394]
[1740159573033,0.0008518,97441.0,97440.0,0.25658569]
[1740159574072,0.0008518,97441.0,97440.0,0.10264569]
[1740159574354,0.0008518,97441.0,97440.0,0.014]
[1740159574586,0.0008518,97441.0,97440.0,0.007]
[1740159574587,0.0208518,97441.0,97440.0,0.007]
[1740159575016,0.0408518,97441.0,97440.0,0.007]
[1740159575227,0.2738908,97441.0,97440.0,0.007]
[1740159575685,0.1679518,97441.0,97440.0,0.007]
[1740159576105,0.1679518,97441.0,97415.0,0.205306]
[1740159576299,0.02,97429.0,97415.0,0.153979]
[1740159576505,0.02,97429.0,97416.0,0.00123161]
[1740159576728,0.02,97429.0,97414.0,0.153981]
[1740159576949,0.02,97426.0,97412.0,0.205312]
[1740159577162,0.02,97426.0,97411.0,0.08181256]
[1740159577582,0.02,97426.0,97414.0,0.153981]
[1740159577800,0.02,97426.0,97415.0,0.153979]
[1740159578044,0.02,97428.0,97425.0,0.00912331]
[1740159578261,0.02,97437.0,97430.0,0.153956]
[1740159578467,0.02,97437.0,97426.0,0.10264569]
[1740159578672,0.02,97437.0,97435.0,0.153947]
[1740159578884,0.02,97438.0,97437.0,0.153945]
[1740159579533,0.02,97438.0,97436.0,0.153945]
[1740159579949,0.02,97438.0,97428.0,0.00123145]
[1740159580167,0.02,97438.0,97435.0,0.153948]
[1740159580815,0.02,97438.0,97435.0,0.153947]
[1740159581036,0.02,97438.0,97436.0,0.153946]
[1740159581401,0.02,97438.0,97436.0,0.153446]
[1740159581748,0.02,97440.0,97439.0,0.153941]
[1740159582147,0.0008518,97441.0,97439.0,0.153941]
[1740159582594,0.0008518,97441.0,97440.0,0.18445825]
[1740159583850,0.0008518,97441.0,97440.0,0.18645825]
[1740159584270,0.0008518,97441.0,97440.0,0.18845825]
[1740159584430,0.0008518,97441.0,97440.0,0.10664569]
[1740159584636,0.0008518,97441.0,97440.0,0.004]
[1740159585027,0.0008518,97441.0,97440.0,0.00523133]
[1740159585227,0.0408518,97441.0,97440.0,0.004]
[1740159585609,0.29743649,97441.0,97440.0,0.004]
[1740159585963,0.0208518,97441.0,97440.0,0.10664569]
[1740159586138,0.0208518,97441.0,97440.0,0.002]
[1740159586552,0.0408518,97441.0,97425.0,0.00012331]
[1740159586753,0.02,97435.0,97426.0,0.10264569]
[1740159586956,0.02,97435.0,97427.0,0.00123156]
[1740159587159,0.02,97435.0,97429.0,0.153957]
[1740159587391,0.02,97435.0,97430.0,0.153955]
[1740159587621,0.02,97435.0,97431.0,0.153954]
[1740159587828,0.02,97435.0,97434.0,0.23576256]
[1740159588038,0.02,97435.0,97425.0,0.00012331]
[1740159588039,0.02,97429.0,97427.0,0.15396]
[1740159588267,0.04,97426.0,97425.0,0.00012331]
[1740159588476,0.297363,97426.0,97425.0,0.00012331]
[1740159588661,0.317363,97426.0,97425.0,0.00012331]
[1740159589235,0.32688264,97426.0,97425.0,0.00012331]
[1740159589466,0.57952833,97426.0,97425.0,0.00012331]
[1740159589684,0.57952833,97426.0,97425.0,0.00212331]
[1740159589888,0.60940686,97426.0,97425.0,0.00212331]
[1740159590090,0.57952833,97426.0,97425.0,0.00012331]
[1740159590740,0.174002,97401.0,97400.0,2.023124]
[1740159590942,0.174002,97401.0,97400.0,2.02355687]
[1740159590943,0.37314769,97401.0,97400.0,2.02355687]
[1740159591088,0.270502,97401.0,97400.0,2.02355687]
[1740159591464,0.02912357,97426.0,97400.0,2.02355687]
[1740159591645,0.01960393,97426.0,97403.0,0.20533]
[1740159591975,0.26979876,97420.0,97400.0,2.02355687]
[1740159592186,0.26979876,97420.0,97404.0,0.08181256]
[1740159592473,0.26979876,97420.0,97410.0,0.153987]
[1740159592627,0.26979876,97420.0,97405.0,0.10264569]
[1740159592986,0.26979876,97420.0,97403.0,0.004]
[1740159593243,0.26979876,97420.0,97401.0,0.08181256]
[1740159593452,0.26979876,97420.0,97404.0,0.005]
[1740159593878,0.26979876,97420.0,97405.0,0.005]
[1740159594286,0.26979876,97420.0,97411.0,0.08181256]
[1740159594708,0.26979876,97420.0,97405.0,0.005]
[1740159594913,0.153991,97408.0,97405.0,0.005]
[1740159595115,0.26979876,97420.0,97400.0,2.02355687]
[1740159595321,0.26979876,97410.0,97400.0,2.02355687]
[1740159595536,0.153996,97405.0,97404.0,0.002]
[1740159595765,0.303996,97405.0,97404.0,0.002]
[1740159595980,0.304002,97401.0,97400.0,2.02355687]
[1740159596395,0.40664769,97401.0,97400.0,2.02355687]
[1740159596606,0.40664769,97401.0,97400.0,1.49355687]
[1740159596825,0.047,97411.0,97400.0,1.49355687]
[1740159596826,0.00751926,97405.0,97400.0,1.49355687]
[1740159597487,0.154002,97401.0,97400.0,1.49355687]
[1740159598117,0.16152126,97401.0,97400.0,1.49355687]
[1740159599847,0.00751926,97401.0,97400.0,1.49355687]
[1740159600046,0.00751926,97401.0,97400.0,1.49455687]